{"text_format":"1","workbook":"xlsx","n_sheets":2,"sheets":["Aktien & Wertpapiere","Renditen"],"not_rendered":{"charts":0,"images":0,"macros":1,"external_links":0,"defined_names":4,"comments":1,"pivot_tables":0},"unopened":[],"bounds":{"document_bytes":16777216,"sheet_cells":100000,"rows_first":2000,"rows_last":500,"rows_between":2000,"halvings":0,"cell_chars":16384,"cell_head_chars":4096},"cells_cut":0,"cells_raw":0,"read":"whole","date_system":"1900"}

{"sheet":"Aktien & Wertpapiere","index":0,"n_rows":156,"n_cols":20,"rows_kept":156,"cut":false,"hidden":false,"merged":[[1,4,1,8]]}
[]
[null,"HINWEISE (siehe Notiz / Kommentar)",null,null,"https://query1.finance.yahoo.com/v7/finance/quote?symbols="]
[]
[null,"Name","Symbol","Kurs","Vortag","Änderung","Änderung %","Kursdatum","Kurszeit","Umsatz (Stück)","Kaufkurs","Stück","Wert","Investition","Gew./Verl.","Gew./Verl. %","Netto","Rendite"]
[null,"BASF","BAS.F",{"$f":"VALUE(SUBSTITUTE(MID(_xlfn.WEBSERVICE(Adresse&$C5),SEARCH(\"regularMarketPrice\",_xlfn.WEBSERVICE(Adresse&$C5))+20,SEARCH(\",\",MID(_xlfn.WEBSERVICE(Adresse&$C5),SEARCH(\"regularMarketPrice\",_xlfn.WEBSERVICE(Adresse&$C5))+20,18))-1),\".\",\",\"))","v":52.78},{"$f":"VALUE(SUBSTITUTE(MID(_xlfn.WEBSERVICE(Adresse&$C5),SEARCH(\"regularMarketPreviousClose\",_xlfn.WEBSERVICE(Adresse&$C5))+28,SEARCH(\",\",MID(_xlfn.WEBSERVICE(Adresse&$C5),SEARCH(\"regularMarketPreviousClose\",_xlfn.WEBSERVICE(Adresse&$C5))+28,18))-1),\".\",\",\"))","v":53.19},{"$f":"VALUE(SUBSTITUTE(MID(_xlfn.WEBSERVICE(Adresse&$C5),SEARCH(\"regularMarketChange\"\":\",_xlfn.WEBSERVICE(Adresse&$C5))+21,SEARCH(\",\",MID(_xlfn.WEBSERVICE(Adresse&$C5),SEARCH(\"regularMarketChange\"\":\",_xlfn.WEBSERVICE(Adresse&$C5))+21,18))-1),\".\",\",\"))","v":-0.40999985},{"$f":"VALUE(SUBSTITUTE(MID(_xlfn.WEBSERVICE(Adresse&$C5),SEARCH(\"regularMarketChangePercent\",_xlfn.WEBSERVICE(Adresse&$C5))+28,SEARCH(\",\",MID(_xlfn.WEBSERVICE(Adresse&$C5),SEARCH(\"regularMarketChangePercent\",_xlfn.WEBSERVICE(Adresse&$C5))+28,18))-1),\".\",\",\"))/100","v":-7.7082132999999999E-3},{"$f":"(VALUE(MID(_xlfn.WEBSERVICE(Adresse&$C5),SEARCH(\"regularMarketTime\",_xlfn.WEBSERVICE(Adresse&$C5))+19,SEARCH(\",\",MID(_xlfn.WEBSERVICE(Adresse&$C5),SEARCH(\"regularMarketTime\",_xlfn.WEBSERVICE(Adresse&$C5))+19,18))-1))+7200) / 86400 + 25569","v":44939.956863425927},44939.956863425927,{"$f":"VALUE(MID(_xlfn.WEBSERVICE(Adresse&$C5),SEARCH(\"regularMarketVolume\",_xlfn.WEBSERVICE(Adresse&$C5))+21,SEARCH(\",\",MID(_xlfn.WEBSERVICE(Adresse&$C5),SEARCH(\"regularMarketVolume\",_xlfn.WEBSERVICE(Adresse&$C5))+21,18))-1))","v":10868},50,100,{"$f":"L5*D5","v":5278},{"$f":"K5*L5","v":5000},{"$f":"M5-N5","v":278},{"$f":"O5/N5","v":5.5599999999999997E-2},{"$f":"Tabelle1[[#This Row],[Investition]]+(Tabelle1[[#This Row],[Gew./Verl.]]*0.75)","v":5208.5},{"$f":"Renditen!B1","v":3.2017669081687919E-2}]
[null,"SAP","SAP.DU",{"$f":"VALUE(SUBSTITUTE(MID(_xlfn.WEBSERVICE(Adresse&$C6),SEARCH(\"regularMarketPrice\",_xlfn.WEBSERVICE(Adresse&$C6))+20,SEARCH(\",\",MID(_xlfn.WEBSERVICE(Adresse&$C6),SEARCH(\"regularMarketPrice\",_xlfn.WEBSERVICE(Adresse&$C6))+20,18))-1),\".\",\",\"))","v":107.7},{"$f":"VALUE(SUBSTITUTE(MID(_xlfn.WEBSERVICE(Adresse&$C6),SEARCH(\"regularMarketPreviousClose\",_xlfn.WEBSERVICE(Adresse&$C6))+28,SEARCH(\",\",MID(_xlfn.WEBSERVICE(Adresse&$C6),SEARCH(\"regularMarketPreviousClose\",_xlfn.WEBSERVICE(Adresse&$C6))+28,18))-1),\".\",\",\"))","v":106.76},{"$f":"VALUE(SUBSTITUTE(MID(_xlfn.WEBSERVICE(Adresse&$C6),SEARCH(\"regularMarketChange\"\":\",_xlfn.WEBSERVICE(Adresse&$C6))+21,SEARCH(\",\",MID(_xlfn.WEBSERVICE(Adresse&$C6),SEARCH(\"regularMarketChange\"\":\",_xlfn.WEBSERVICE(Adresse&$C6))+21,18))-1),\".\",\",\"))","v":0.93999480000000002},{"$f":"VALUE(SUBSTITUTE(MID(_xlfn.WEBSERVICE(Adresse&$C6),SEARCH(\"regularMarketChangePercent\",_xlfn.WEBSERVICE(Adresse&$C6))+28,SEARCH(\",\",MID(_xlfn.WEBSERVICE(Adresse&$C6),SEARCH(\"regularMarketChangePercent\",_xlfn.WEBSERVICE(Adresse&$C6))+28,18))-1),\".\",\",\"))/100","v":8.8047469999999999E-3},44939.522662037038,44939.522662037038,{"$f":"VALUE(MID(_xlfn.WEBSERVICE(Adresse&$C6),SEARCH(\"regularMarketVolume\",_xlfn.WEBSERVICE(Adresse&$C6))+21,SEARCH(\",\",MID(_xlfn.WEBSERVICE(Adresse&$C6),SEARCH(\"regularMarketVolume\",_xlfn.WEBSERVICE(Adresse&$C6))+21,18))-1))","v":96},100,50,5385,5000,385,7.6999999999999999E-2,{"$f":"Tabelle1[[#This Row],[Investition]]+(Tabelle1[[#This Row],[Gew./Verl.]]*0.75)","v":5288.75},{"$f":"Renditen!E1","v":{"$error":"#NUM!"}}]
[null,"ARERO - Der Weltfonds","HVJD.DU",{"$f":"VALUE(SUBSTITUTE(MID(_xlfn.WEBSERVICE(Adresse&$C7),SEARCH(\"regularMarketPrice\",_xlfn.WEBSERVICE(Adresse&$C7))+20,SEARCH(\",\",MID(_xlfn.WEBSERVICE(Adresse&$C7),SEARCH(\"regularMarketPrice\",_xlfn.WEBSERVICE(Adresse&$C7))+20,18))-1),\".\",\",\"))","v":241.29300000000001},{"$f":"VALUE(SUBSTITUTE(MID(_xlfn.WEBSERVICE(Adresse&$C7),SEARCH(\"regularMarketPreviousClose\",_xlfn.WEBSERVICE(Adresse&$C7))+28,SEARCH(\",\",MID(_xlfn.WEBSERVICE(Adresse&$C7),SEARCH(\"regularMarketPreviousClose\",_xlfn.WEBSERVICE(Adresse&$C7))+28,18))-1),\".\",\",\"))","v":241.791},{"$f":"VALUE(SUBSTITUTE(MID(_xlfn.WEBSERVICE(Adresse&$C7),SEARCH(\"regularMarketChange\"\":\",_xlfn.WEBSERVICE(Adresse&$C7))+21,SEARCH(\",\",MID(_xlfn.WEBSERVICE(Adresse&$C7),SEARCH(\"regularMarketChange\"\":\",_xlfn.WEBSERVICE(Adresse&$C7))+21,18))-1),\".\",\",\"))","v":-0.49800109999999997},{"$f":"VALUE(SUBSTITUTE(MID(_xlfn.WEBSERVICE(Adresse&$C7),SEARCH(\"regularMarketChangePercent\",_xlfn.WEBSERVICE(Adresse&$C7))+28,SEARCH(\",\",MID(_xlfn.WEBSERVICE(Adresse&$C7),SEARCH(\"regularMarketChangePercent\",_xlfn.WEBSERVICE(Adresse&$C7))+28,18))-1),\".\",\",\"))/100","v":-2.0596345E-3},44939.948715277773,44939.948715277773,{"$f":"VALUE(MID(_xlfn.WEBSERVICE(Adresse&$C7),SEARCH(\"regularMarketVolume\",_xlfn.WEBSERVICE(Adresse&$C7))+21,SEARCH(\",\",MID(_xlfn.WEBSERVICE(Adresse&$C7),SEARCH(\"regularMarketVolume\",_xlfn.WEBSERVICE(Adresse&$C7))+21,18))-1))","v":9},200,20,{"$f":"L7*D7","v":4825.8600000000006},{"$f":"K7*L7","v":4000},{"$f":"M7-N7","v":825.86000000000058},{"$f":"O7/N7","v":0.20646500000000015},{"$f":"Tabelle1[[#This Row],[Investition]]+(Tabelle1[[#This Row],[Gew./Verl.]]*0.75)","v":4619.3950000000004},{"$f":"Renditen!H1","v":{"$error":"#NUM!"}}]
[null,"Cisco","CIS.DE",{"$f":"VALUE(SUBSTITUTE(MID(_xlfn.WEBSERVICE(Adresse&$C8),SEARCH(\"regularMarketPrice\",_xlfn.WEBSERVICE(Adresse&$C8))+20,SEARCH(\",\",MID(_xlfn.WEBSERVICE(Adresse&$C8),SEARCH(\"regularMarketPrice\",_xlfn.WEBSERVICE(Adresse&$C8))+20,18))-1),\".\",\",\"))","v":45.11},{"$f":"VALUE(SUBSTITUTE(MID(_xlfn.WEBSERVICE(Adresse&$C8),SEARCH(\"regularMarketPreviousClose\",_xlfn.WEBSERVICE(Adresse&$C8))+28,SEARCH(\",\",MID(_xlfn.WEBSERVICE(Adresse&$C8),SEARCH(\"regularMarketPreviousClose\",_xlfn.WEBSERVICE(Adresse&$C8))+28,18))-1),\".\",\",\"))","v":45.44},{"$f":"VALUE(SUBSTITUTE(MID(_xlfn.WEBSERVICE(Adresse&$C8),SEARCH(\"regularMarketChange\"\":\",_xlfn.WEBSERVICE(Adresse&$C8))+21,SEARCH(\",\",MID(_xlfn.WEBSERVICE(Adresse&$C8),SEARCH(\"regularMarketChange\"\":\",_xlfn.WEBSERVICE(Adresse&$C8))+21,18))-1),\".\",\",\"))","v":-0.32999802},{"$f":"VALUE(SUBSTITUTE(MID(_xlfn.WEBSERVICE(Adresse&$C8),SEARCH(\"regularMarketChangePercent\",_xlfn.WEBSERVICE(Adresse&$C8))+28,SEARCH(\",\",MID(_xlfn.WEBSERVICE(Adresse&$C8),SEARCH(\"regularMarketChangePercent\",_xlfn.WEBSERVICE(Adresse&$C8))+28,18))-1),\".\",\",\"))/100","v":-7.2622805999999996E-3},{"$f":"(VALUE(MID(_xlfn.WEBSERVICE(Adresse&$C8),SEARCH(\"regularMarketTime\",_xlfn.WEBSERVICE(Adresse&$C8))+19,SEARCH(\",\",MID(_xlfn.WEBSERVICE(Adresse&$C8),SEARCH(\"regularMarketTime\",_xlfn.WEBSERVICE(Adresse&$C8))+19,18))-1))+7200) / 86400 + 25569","v":44939.774849537032},44939.774849537032,{"$f":"VALUE(MID(_xlfn.WEBSERVICE(Adresse&$C8),SEARCH(\"regularMarketVolume\",_xlfn.WEBSERVICE(Adresse&$C8))+21,SEARCH(\",\",MID(_xlfn.WEBSERVICE(Adresse&$C8),SEARCH(\"regularMarketVolume\",_xlfn.WEBSERVICE(Adresse&$C8))+21,18))-1))","v":7185},50,100,{"$f":"L8*D8","v":4511},{"$f":"K8*L8","v":5000},{"$f":"M8-N8","v":-489},{"$f":"O8/N8","v":-9.7799999999999998E-2},{"$f":"Tabelle1[[#This Row],[Investition]]+(Tabelle1[[#This Row],[Gew./Verl.]]*0.75)","v":4633.25}]
[null,"Allianz","ALV.DE",217.75,217.7,5.000305E-2,2.2968787999999999E-4,44939.781030092592,44939.781030092592,1076232,null,null,0,0,0,{"$error":"#DIV/0!"},{"$f":"Tabelle1[[#This Row],[Investition]]+(Tabelle1[[#This Row],[Gew./Verl.]]*0.75)","v":0}]
[null,"McDonalds","MDO.DE",247.1,247.2,-9.9990844999999995E-2,-4.0449369999999999E-4,44939.774942129632,44939.774942129632,2441,null,null,0,0,0,{"$error":"#DIV/0!"},{"$f":"Tabelle1[[#This Row],[Investition]]+(Tabelle1[[#This Row],[Gew./Verl.]]*0.75)","v":0}]
[null,"Apple","APC.DE",123.04,122.34,0.70000459999999998,5.7217969999999998E-3,44939.77480324074,44939.77480324074,72232,null,null,0,0,0,{"$error":"#DIV/0!"},{"$f":"Tabelle1[[#This Row],[Investition]]+(Tabelle1[[#This Row],[Gew./Verl.]]*0.75)","v":0}]
[null,"Vonovia","VNA.DE",27.05,27.1,-5.0001143999999997E-2,-1.8450605999999999E-3,44939.774479166663,44939.774479166663,2398044,null,null,0,0,0,{"$error":"#DIV/0!"},{"$f":"Tabelle1[[#This Row],[Investition]]+(Tabelle1[[#This Row],[Gew./Verl.]]*0.75)","v":0}]
[null,"Munich RE","MUV2.DE",323.7,323.5,0.2000122,6.1827577999999997E-4,44939.77449074074,44939.77449074074,277169,null,null,0,0,0,{"$error":"#DIV/0!"},{"$f":"Tabelle1[[#This Row],[Investition]]+(Tabelle1[[#This Row],[Gew./Verl.]]*0.75)","v":0}]
[null,"BHP","BHP1.F",31.844999999999999,31.64,0.20499992,6.4791379999999997E-3,44939.762337962966,44939.762337962966,1847,null,null,0,0,0,{"$error":"#DIV/0!"},{"$f":"Tabelle1[[#This Row],[Investition]]+(Tabelle1[[#This Row],[Gew./Verl.]]*0.75)","v":0}]
[null,"Alphabet (ehemals Google)","ABEC.DE",84.58,84.85,-0.26999664000000001,-3.1820467000000002E-3,44939.774687500001,44939.774687500001,5013,null,null,0,0,0,{"$error":"#DIV/0!"},{"$f":"Tabelle1[[#This Row],[Investition]]+(Tabelle1[[#This Row],[Gew./Verl.]]*0.75)","v":0}]
[null,"Siemens Healthineers","SHL.DE",49.82,49.04,0.77999879999999999,1.5905358000000001E-2,44939.776643518519,44939.776643518519,585370,null,null,0,0,0,{"$error":"#DIV/0!"},{"$f":"Tabelle1[[#This Row],[Investition]]+(Tabelle1[[#This Row],[Gew./Verl.]]*0.75)","v":0}]
[null,"Caterpillar","CAT1.F",{"$f":"VALUE(SUBSTITUTE(MID(_xlfn.WEBSERVICE(Adresse&$C17),SEARCH(\"regularMarketPrice\",_xlfn.WEBSERVICE(Adresse&$C17))+20,SEARCH(\",\",MID(_xlfn.WEBSERVICE(Adresse&$C17),SEARCH(\"regularMarketPrice\",_xlfn.WEBSERVICE(Adresse&$C17))+20,18))-1),\".\",\",\"))","v":236},{"$f":"VALUE(SUBSTITUTE(MID(_xlfn.WEBSERVICE(Adresse&$C17),SEARCH(\"regularMarketPreviousClose\",_xlfn.WEBSERVICE(Adresse&$C17))+28,SEARCH(\",\",MID(_xlfn.WEBSERVICE(Adresse&$C17),SEARCH(\"regularMarketPreviousClose\",_xlfn.WEBSERVICE(Adresse&$C17))+28,18))-1),\".\",\",\"))","v":237},{"$f":"VALUE(SUBSTITUTE(MID(_xlfn.WEBSERVICE(Adresse&$C17),SEARCH(\"regularMarketChange\"\":\",_xlfn.WEBSERVICE(Adresse&$C17))+21,SEARCH(\",\",MID(_xlfn.WEBSERVICE(Adresse&$C17),SEARCH(\"regularMarketChange\"\":\",_xlfn.WEBSERVICE(Adresse&$C17))+21,18))-1),\".\",\",\"))","v":-1},{"$f":"VALUE(SUBSTITUTE(MID(_xlfn.WEBSERVICE(Adresse&$C17),SEARCH(\"regularMarketChangePercent\",_xlfn.WEBSERVICE(Adresse&$C17))+28,SEARCH(\",\",MID(_xlfn.WEBSERVICE(Adresse&$C17),SEARCH(\"regularMarketChangePercent\",_xlfn.WEBSERVICE(Adresse&$C17))+28,18))-1),\".\",\",\"))/100","v":-4.2194091999999996E-3},{"$f":"(VALUE(MID(_xlfn.WEBSERVICE(Adresse&$C17),SEARCH(\"regularMarketTime\",_xlfn.WEBSERVICE(Adresse&$C17))+19,SEARCH(\",\",MID(_xlfn.WEBSERVICE(Adresse&$C17),SEARCH(\"regularMarketTime\",_xlfn.WEBSERVICE(Adresse&$C17))+19,18))-1))+7200) / 86400 + 25569","v":44939.716793981483},44939.716793981483,{"$f":"VALUE(MID(_xlfn.WEBSERVICE(Adresse&$C17),SEARCH(\"regularMarketVolume\",_xlfn.WEBSERVICE(Adresse&$C17))+21,SEARCH(\",\",MID(_xlfn.WEBSERVICE(Adresse&$C17),SEARCH(\"regularMarketVolume\",_xlfn.WEBSERVICE(Adresse&$C17))+21,18))-1))","v":796},null,null,{"$f":"L17*D17","v":0},{"$f":"K17*L17","v":0},{"$f":"M17-N17","v":0},{"$f":"O17/N17","v":{"$error":"#DIV/0!"}},{"$f":"Tabelle1[[#This Row],[Investition]]+(Tabelle1[[#This Row],[Gew./Verl.]]*0.75)","v":0}]
[null,"Rheinmetall","RHM.DE",{"$f":"VALUE(SUBSTITUTE(MID(_xlfn.WEBSERVICE(Adresse&$C18),SEARCH(\"regularMarketPrice\",_xlfn.WEBSERVICE(Adresse&$C18))+20,SEARCH(\",\",MID(_xlfn.WEBSERVICE(Adresse&$C18),SEARCH(\"regularMarketPrice\",_xlfn.WEBSERVICE(Adresse&$C18))+20,18))-1),\".\",\",\"))","v":210.1},{"$f":"VALUE(SUBSTITUTE(MID(_xlfn.WEBSERVICE(Adresse&$C18),SEARCH(\"regularMarketPreviousClose\",_xlfn.WEBSERVICE(Adresse&$C18))+28,SEARCH(\",\",MID(_xlfn.WEBSERVICE(Adresse&$C18),SEARCH(\"regularMarketPreviousClose\",_xlfn.WEBSERVICE(Adresse&$C18))+28,18))-1),\".\",\",\"))","v":213},{"$f":"VALUE(SUBSTITUTE(MID(_xlfn.WEBSERVICE(Adresse&$C18),SEARCH(\"regularMarketChange\"\":\",_xlfn.WEBSERVICE(Adresse&$C18))+21,SEARCH(\",\",MID(_xlfn.WEBSERVICE(Adresse&$C18),SEARCH(\"regularMarketChange\"\":\",_xlfn.WEBSERVICE(Adresse&$C18))+21,18))-1),\".\",\",\"))","v":-2.899994},{"$f":"VALUE(SUBSTITUTE(MID(_xlfn.WEBSERVICE(Adresse&$C18),SEARCH(\"regularMarketChangePercent\",_xlfn.WEBSERVICE(Adresse&$C18))+28,SEARCH(\",\",MID(_xlfn.WEBSERVICE(Adresse&$C18),SEARCH(\"regularMarketChangePercent\",_xlfn.WEBSERVICE(Adresse&$C18))+28,18))-1),\".\",\",\"))/100","v":-1.3614994E-2},44939.774548611109,44939.774548611109,{"$f":"VALUE(MID(_xlfn.WEBSERVICE(Adresse&$C18),SEARCH(\"regularMarketVolume\",_xlfn.WEBSERVICE(Adresse&$C18))+21,SEARCH(\",\",MID(_xlfn.WEBSERVICE(Adresse&$C18),SEARCH(\"regularMarketVolume\",_xlfn.WEBSERVICE(Adresse&$C18))+21,18))-1))","v":177793},null,null,{"$f":"L18*D18","v":0},{"$f":"K18*L18","v":0},{"$f":"M18-N18","v":0},{"$f":"O18/N18","v":{"$error":"#DIV/0!"}},{"$f":"Tabelle1[[#This Row],[Investition]]+(Tabelle1[[#This Row],[Gew./Verl.]]*0.75)","v":0}]
[]
[]
[]
[]
[]
[]
[null,null,null,null,null,null,null,null,null,null,null,null,null,null,null,null,{"$f":"SUM(Q5:Q19)","v":19749.895}]
[]
[]
[]
[]
[]
[]
[]
[]
[]
[]
[]
[]
[]
[]
[]
[]
[]
[]
[]
[]
[]
[]
[]
[]
[]
[]
[]
[]
[]
[]
[]
[]
[]
[]
[]
[]
[]
[]
[]
[]
[]
[]
[]
[]
[]
[]
[]
[]
[]
[]
[]
[]
[]
[]
[]
[]
[]
[]
[]
[]
[]
[]
[]
[]
[]
[]
[]
[]
[]
[]
[]
[]
[]
[]
[]
[]
[]
[]
[]
[]
[]
[]
[]
[]
[]
[]
[]
[]
[]
[]
[]
[]
[]
[]
[]
[]
[]
[]
[]
[]
[]
[]
[]
[]
[]
[]
[]
[]
[]
[]
[]
[]
[]
[]
[]
[]
[]
[]
[]
[]
[]
[]
[]
[]
[]
[]
[]
[]
[]
[null,null,null,null,null,null,null,null,null,null,null,null,null,null,null,null,null,"DE000A27Z304 ",null,"BTCetc - Bitcoin Exchange Traded Crypto"]
[null,null,null,null,null,null,null,null,null,null,null,null,null,null,null,null,null,"IE00BGBN6P67 ",null,"Invesco Elwood Global Blockchain UCITS ETF Acc"]

{"sheet":"Renditen","index":1,"n_rows":21,"n_cols":10,"rows_kept":21,"cut":false,"hidden":false,"merged":[]}
["BASF",{"$f":"XIRR(B3:B14,A3:A14)","v":3.2017669081687919E-2},"Notiz","SAP",{"$f":"XIRR(E3:E14,D3:D14)","v":{"$error":"#NUM!"}},"Notiz","CISCO",{"$f":"XIRR(H3:H14,G3:G14)","v":{"$error":"#NUM!"}},null,{"$f":"XIRR(J3:J14,I3:I14)","v":{"$error":"#NUM!"}}]
["Datum","Wert",null,"Datum","Wert",null,"Datum","Wert","Datum","Wert"]
[42005,{"$f":"-5000","v":-5000},"Kauf"]
[42139,200,"Dividende"]
[42262,2500,"Teilverkauf"]
[42370,{"$f":"-3000","v":-3000},"Kauf"]
[42505,200,"Dividende"]
[42870,200,"Dividende"]
[43235,200,"Dividende"]
[43600,200,"Dividende"]
[43966,200,"Dividende"]
[44331,200,"Dividende"]
[44696,200,"Dividende"]
[{"$f":"TODAY()","v":44942},{"$f":"'Aktien & Wertpapiere'!Q5","v":5208.5},"Wert heute"]
[]
[]
[]
["Wichtig: "]
["Käufe x  -1 nehmen (negativ eintragen)"]
["Letzter Eintrag muss aktuelles Datum plus aktuellen Wert enthalten"]
["Formel XINTZINSFUSS darf keine leeren Zeilen bzw. Zellen umfassen"]